bitfinex-derivatives/quotes_SOLF0:USTF0_20220110
["timestamp","ask_amount","ask_price","bid_price","bid_amount"]
[1641794003779,27.66479,142.65,142.64,3.20855037]
[1641794003980,3.97256296,142.66,142.64,3.20855037]
[1641794004180,3.97256296,142.65,142.64,3.20855037]
[1641794004579,3.97256296,142.66,142.64,3.20855037]
[1641794004979,3.97256296,142.66,142.64,0.79451259]
[1641794005178,3.97256296,142.66,142.61,8.833]
[1641794005579,3.97256296,142.66,142.62,0.79443187]
[1641794005878,3.97256296,142.66,142.62,3.20978368]
[1641794006381,27.66479,142.63,142.62,2.41535181]
[1641794006581,33.90379,142.63,142.61,14.88223511]
[1641794006892,4.0,142.62,142.61,14.88223511]
[1641794007082,39.51306068,142.63,142.59,9.74589554]
[1641794007282,39.51306068,142.63,142.57,39.27954557]
[1641794007483,39.51306068,142.63,142.56,4.0]
[1641794007884,3.97288532,142.62,142.56,4.0]
[1641794008484,3.97288532,142.62,142.56,13.73871891]
[1641794009084,5.72488532,142.62,142.56,13.73871891]
[1641794009487,3.97288532,142.61,142.56,13.73871891]
[1641794011187,36.15968532,142.62,142.56,13.73871891]
[1641794012090,3.97288532,142.61,142.56,13.73871891]
[1641794013093,3.97288532,142.61,142.57,4.0]
[1641794013291,3.97288532,142.61,142.57,9.794]
[1641794013491,3.97288532,142.61,142.57,5.794]
[1641794013990,32.1868,142.62,142.57,5.794]
[1641794014792,3.97247179,142.61,142.57,5.794]
[1641794016801,32.1868,142.62,142.57,5.794]
[1641794017594,3.97274253,142.61,142.57,5.794]
[1641794017993,3.97274253,142.61,142.57,9.794]
[1641794018595,3.97274253,142.61,142.58,27.66479]
[1641794018793,33.2729652,142.65,142.58,27.66479]
[1641794018794,39.13744253,142.64,142.58,27.66479]
[1641794018993,39.13744253,142.64,142.57,4.0]
[1641794019194,3.97274253,142.63,142.57,4.0]
[1641794019394,3.97274253,142.63,142.58,9.73871891]
[1641794019794,3.97274253,142.63,142.57,4.0]
[1641794021794,3.97274253,142.63,142.58,0.7945959]
[1641794024198,3.97274253,142.63,142.57,0.7945959]
[1641794025500,3.97274253,142.63,142.57,4.7945959]
[1641794026101,3.97274253,142.63,142.58,0.7945959]
[1641794028604,3.97274253,142.63,142.57,0.7945959]
[1641794030204,3.97274253,142.63,142.57,4.7945959]
[1641794030605,3.97274253,142.63,142.57,0.7945959]
[1641794030806,3.97274253,142.63,142.58,0.7945959]
[1641794031206,3.97274253,142.63,142.57,8.9405959]
[1641794031504,3.97274253,142.63,142.58,0.7945959]
[1641794032105,3.97274253,142.63,142.57,0.7945959]
[1641794035708,3.97274253,142.63,142.57,4.7945959]
[1641794036311,3.97274253,142.63,142.58,0.7945959]
[1641794037511,3.97274253,142.63,142.59,14.88351318]
[1641794038013,3.97274253,142.63,142.6,0.7945959]
[1641794038412,3.97274253,142.63,142.6,15.67810908]
[1641794038915,3.97274253,142.63,142.61,0.7945959]
[1641794039115,5.72474253,142.63,142.61,0.7945959]
[1641794039715,3.97274253,142.62,142.61,0.7945959]
[1641794042018,3.97274253,142.63,142.61,0.7945959]
[1641794046927,3.97274253,142.63,142.62,2.4150745]
[1641794047327,3.97274253,142.63,142.62,3.2096704]
[1641794047727,3.97274253,142.64,142.62,3.2096704]
[1641794048126,3.97274253,142.64,142.63,0.7945959]
[1641794048326,3.97274253,142.64,142.63,3.2096704]
[1641794056441,11.76674253,142.64,142.63,3.2096704]
[1641794060845,3.97274253,142.64,142.63,10.9896704]
[1641794062245,3.97274253,142.66,142.63,10.9896704]
[1641794062645,3.97274253,142.66,142.64,0.7945959]
[1641794063946,3.97274253,142.66,142.65,2.4150745]
[1641794064747,3.97274253,142.67,142.65,0.7944595]
[1641794065147,3.97274253,142.67,142.62,0.7944595]
[1641794065748,3.97274253,142.67,142.63,2.41430102]
[1641794066047,3.97274253,142.67,142.64,0.7944595]
[1641794067452,3.97274253,142.67,142.65,2.41430102]
[1641794068753,3.97274253,142.67,142.62,2.41430102]
[1641794068953,3.97274253,142.67,142.63,0.7944372]
[1641794069654,3.97274253,142.67,142.64,2.41430102]
[1641794070254,3.97274253,142.67,142.65,0.7944372]
[1641794071556,3.97274253,142.67,142.63,0.7944372]
[1641794072256,3.97274253,142.67,142.64,2.41333342]
[1641794072856,3.97274253,142.67,142.65,0.7944372]
[1641794074359,3.97274253,142.67,142.63,0.7944372]
[1641794074559,3.97274253,142.67,142.62,18.88351318]
[1641794074958,3.97274253,142.67,142.64,2.41324629]
[1641794075459,3.97274253,142.67,142.65,0.79442755]
[1641794076258,3.97274253,142.67,142.63,0.79442755]
[1641794076861,3.97274253,142.67,142.64,2.41312213]
[1641794077262,3.97274253,142.67,142.65,0.79442755]
[1641794087975,3.97274253,142.68,142.65,0.79442755]
[1641794091878,3.97274253,142.69,142.65,0.79442755]
[1641794092579,3.97274253,142.69,142.66,2.41534729]
[1641794093078,2.54581092,142.68,142.66,2.41534729]
[1641794093679,3.97274253,142.67,142.66,2.41534729]
[1641794094079,3.97274253,142.67,142.65,2.41534729]
[1641794094280,3.97274253,142.67,142.66,0.79439622]
[1641794095284,46.99341318,142.7,142.66,0.79439622]
[1641794095285,3.97274253,142.69,142.66,0.79439622]
[1641794095482,3.97274253,142.69,142.66,3.20974351]
[1641794095980,3.97274253,142.69,142.66,2.41534729]
[1641794096181,2.5462471,142.68,142.64,35.30532213]
[1641794096581,3.97274253,142.67,142.65,0.79441856]
[1641794096881,3.97274253,142.67,142.65,3.21011498]
[1641794097383,3.97274253,142.67,142.66,0.79441856]
[1641794097882,3.97274253,142.67,142.66,3.21011498]
[1641794098184,3.97274253,142.69,142.66,3.21011498]
[1641794098589,3.97274253,142.69,142.66,6.41569642]
[1641794098788,3.97274253,142.69,142.66,11.76369642]
[1641794098989,3.97274253,142.69,142.66,15.76369642]
[1641794099189,3.97274253,142.7,142.67,7.20992199]
[1641794099588,3.97274253,142.71,142.68,28.45901557]
[1641794099991,3.97274253,142.71,142.69,0.79422557]
[1641794100591,3.97274253,142.71,142.69,3.20992199]
[1641794100891,3.97274253,142.75,142.7,0.79422557]
[1641794101496,2.54146162,142.74,142.71,2.41569642]
[1641794101893,3.97274253,142.73,142.71,2.41569642]
[1641794102093,5.72274253,142.73,142.71,2.41569642]
[1641794102495,5.72274253,142.73,142.67,24.61469039]
[1641794102896,3.97274253,142.72,142.67,24.61469039]
[1641794103099,3.97274253,142.72,142.67,14.88351318]
[1641794103395,3.97274253,142.72,142.68,0.7941893]
[1641794103595,37.23884253,142.73,142.68,0.7941893]
[1641794103995,37.23884253,142.73,142.69,2.41126239]
[1641794104196,3.97274253,142.72,142.69,2.41126239]
[1641794104697,3.97274253,142.72,142.69,4.0]
[1641794104897,3.97274253,142.72,142.7,0.79415999]
[1641794105298,3.97274253,142.74,142.7,0.79415999]
[1641794105698,3.97274253,142.74,142.7,28.45894999]
[1641794106099,60.18499,142.76,142.7,28.45894999]
[1641794106100,3.97274253,142.75,142.71,0.79415999]
[1641794107499,3.97274253,142.75,142.71,8.71315999]
[1641794108100,3.97274253,142.75,142.71,7.919]
[1641794112505,3.97274253,142.75,142.69,32.5603]
[1641794112905,3.97274253,142.75,142.7,0.79414854]
[1641794116613,5.72274253,142.75,142.7,0.79414854]
[1641794117012,3.97274253,142.74,142.7,0.79414854]
[1641794117412,3.97274253,142.76,142.7,0.79414854]
[1641794118312,36.61474253,142.76,142.7,0.79414854]
[1641794118513,1.75,142.75,142.7,0.79414854]
[1641794118713,5.72274253,142.75,142.7,0.79414854]
[1641794119114,3.97274253,142.74,142.7,0.79414854]
[1641794119914,3.97274253,142.75,142.7,0.79414854]
[1641794121916,3.97274253,142.75,142.71,2.40589993]
[1641794122719,3.97274253,142.75,142.72,0.79414854]
[1641794123016,3.97274253,142.75,142.72,7.27414854]
[1641794123519,3.97274253,142.75,142.72,6.48]
[1641794125220,5.72274253,142.75,142.73,0.79404822]
[1641794125421,3.97274253,142.75,142.73,0.79404822]
[1641794125621,3.97274253,142.74,142.69,40.8803]
[1641794126021,3.97274253,142.74,142.7,0.79408769]
[1641794126220,3.97274253,142.75,142.7,0.79408769]
[1641794126520,3.97274253,142.75,142.7,3.20317582]
[1641794126920,3.97274253,142.75,142.71,0.79408769]
[1641794127120,1.75,142.74,142.71,0.79408769]
[1641794127322,1.75,142.74,142.68,59.72099]
[1641794127621,1.75,142.74,142.68,32.0562]
[1641794127821,31.63753253,142.73,142.69,0.7941932]
[1641794128021,34.18020597,142.73,142.69,3.20647586]
[1641794128321,3.97274253,142.72,142.69,3.20647586]
[1641794128522,3.97274253,142.72,142.7,0.7941932]
[1641794129021,3.97274253,142.72,142.7,3.20647586]
[1641794129422,3.97274253,142.72,142.7,2.41228266]
[1641794129620,3.97274253,142.72,142.68,32.0562]
[1641794130224,3.97274253,142.72,142.69,0.79417732]
[1641794130422,3.97274253,142.72,142.69,3.20667991]
[1641794131029,3.97274253,142.72,142.7,2.41250259]
[1641794131227,3.97274253,142.72,142.7,3.20667991]
[1641794131727,3.97274253,142.72,142.68,32.0562]
[1641794132128,3.97274253,142.72,142.69,0.79418848]
[1641794132428,3.97274253,142.72,142.69,3.20665412]
[1641794133030,3.97274253,142.72,142.7,0.79418848]
[1641794133230,3.97274253,142.72,142.7,3.20665412]
[1641794133633,3.97274253,142.75,142.71,0.79418848]
[1641794134031,3.97274253,142.75,142.71,3.20665412]
[1641794134332,3.97274253,142.75,142.72,0.79418848]
[1641794134731,3.97274253,142.75,142.68,46.93971318]
[1641794135331,3.97274253,142.75,142.69,0.79410408]
[1641794135532,3.97274253,142.75,142.69,27.82662754]
[1641794135932,3.97274253,142.75,142.7,27.66479]
[1641794136133,3.97274253,142.75,142.7,28.45889408]
[1641794136333,3.97274253,142.75,142.7,3.20651701]
[1641794136533,3.97274253,142.75,142.71,0.79410408]
[1641794137134,3.97274253,142.75,142.71,3.20651701]
[1641794137835,3.97274253,142.75,142.72,3.20651701]
[1641794138338,3.97274253,142.75,142.72,2.41241293]
[1641794138538,3.97274253,142.75,142.69,24.62011053]
[1641794139039,3.97274253,142.75,142.69,27.03244426]
[1641794139239,3.97274253,142.75,142.7,0.79408862]
[1641794139743,3.97274253,142.75,142.71,2.41233373]
[1641794140144,3.97274253,142.75,142.72,0.79408862]
[1641794141446,3.97274253,142.75,142.7,0.79408862]
[1641794142846,3.97274253,142.75,142.71,2.41243877]
[1641794143247,3.97274253,142.75,142.72,0.79408862]
[1641794144950,3.97274253,142.75,142.71,0.79408862]
[1641794145752,3.97274253,142.75,142.72,2.41242244]
[1641794146854,3.97274253,142.75,142.73,0.79404904]
[1641794147153,3.97274253,142.75,142.73,7.42504904]
[1641794147754,3.97274253,142.75,142.73,6.631]
[1641794152359,3.97274253,142.75,142.71,34.8398]
[1641794152860,3.97274253,142.75,142.72,0.79405735]
[1641794153259,3.97274253,142.75,142.72,3.20631618]
[1641794153460,3.97274253,142.75,142.74,4.0]
[1641794153660,14.88351318,142.78,142.74,12.899]
[1641794153861,14.88351318,142.78,142.74,8.899]
[1641794154060,14.88351318,142.8,142.74,15.31125883]
[1641794154460,14.88351318,142.8,142.77,27.66479]
[1641794154660,14.88351318,142.8,142.77,36.54079]
[1641794154862,14.88351318,142.8,142.77,8.876]
[1641794155062,3.96914115,142.79,142.77,8.876]
[1641794155662,3.96914115,142.79,142.78,0.79378641]
[1641794156364,3.96914115,142.8,142.78,0.79378641]
[1641794157569,3.96914115,142.8,142.75,0.79378641]
[1641794158166,3.96914115,142.8,142.76,2.40598493]
[1641794158867,3.96914115,142.8,142.77,0.79378641]
[1641794159069,3.96914115,142.8,142.77,9.36778641]
[1641794159667,3.96914115,142.8,142.78,0.79378641]
[1641794160969,3.96914115,142.8,142.74,87.59618]
[1641794161170,3.96914115,142.8,142.74,91.59618]
[1641794161572,3.96914115,142.8,142.75,0.79381237]
[1641794162771,3.96914115,142.8,142.77,27.66479]
[1641794165879,3.96914115,142.8,142.74,59.93139]
[1641794166081,13.73914115,142.8,142.74,59.93139]
[1641794166279,13.73914115,142.8,142.75,0.79385635]
[1641794166680,3.96914115,142.79,142.75,0.79385635]
[1641794168284,1.75,142.78,142.75,0.79385635]
[1641794168485,1.75,142.78,142.74,0.79385635]
[1641794169086,3.96914115,142.77,142.74,0.79385635]
[1641794169885,3.96914115,142.78,142.74,0.79385635]
[1641794170786,3.96914115,142.78,142.74,28.45864635]
[1641794171291,3.96914115,142.78,142.75,0.79385635]
[1641794172991,3.96914115,142.8,142.75,0.79385635]
[1641794173193,7.35269151,142.79,142.75,0.79385635]
[1641794173393,7.35269151,142.79,142.73,0.79385635]
[1641794173798,3.96914115,142.78,142.73,0.79385635]
[1641794174396,3.96914115,142.78,142.74,2.40590081]
[1641794174998,3.96914115,142.78,142.75,0.79385635]
[1641794175197,3.96914115,142.78,142.75,28.45864635]
[1641794175899,3.96914115,142.78,142.76,0.79385635]
[1641794176699,3.96914115,142.78,142.73,0.79385635]
[1641794177800,3.96914115,142.78,142.74,2.40683699]
[1641794179000,3.96914115,142.78,142.75,0.79385635]
[1641794180002,3.96914115,142.78,142.76,2.40683699]
[1641794180704,3.96914115,142.78,142.73,14.88351318]
[1641794180903,3.96914115,142.78,142.72,49.23291318]
[1641794181604,3.96914115,142.78,142.73,3.20251142]
[1641794182206,3.96914115,142.78,142.74,2.40874954]
[1641794182506,3.96914115,142.78,142.74,3.20251142]
[1641794182706,3.96914115,142.78,142.75,0.79376188]
[1641794184207,3.96914115,142.78,142.73,0.79376188]
[1641794184407,3.96914115,142.78,142.76,2.41159769]
[1641794185312,3.96914115,142.78,142.74,2.41159769]
[1641794185910,3.96914115,142.78,142.75,0.79376714]
[1641794186410,3.96914115,142.78,142.73,27.02845597]
[1641794186411,3.96914115,142.78,142.74,0.79376714]
[1641794186813,3.96914115,142.78,142.76,2.41159769]
[1641794187613,3.96914115,142.78,142.75,2.41159769]
[1641794187813,12.77914115,142.78,142.75,2.41159769]
[1641794188014,18.38216963,142.78,142.76,0.79378993]
[1641794188614,3.96914115,142.77,142.76,0.79378993]
[1641794189014,3.96914115,142.77,142.74,0.79378993]
[1641794189615,3.96914115,142.77,142.73,0.79378993]
[1641794189817,3.96914115,142.77,142.75,2.41201145]
[1641794190317,3.96914115,142.77,142.76,0.79378993]
[1641794191220,3.96914115,142.77,142.76,2.41201145]
[1641794191620,3.96914115,142.77,142.75,0.79378993]
[1641794191822,3.96914115,142.77,142.76,0.79378993]
[1641794192023,3.96914115,142.77,142.76,7.06878993]
[1641794192220,3.96914115,142.79,142.76,6.275]
[1641794192822,3.96914115,142.79,142.77,0.79378993]
[1641794193222,3.96914115,142.79,142.77,7.39878993]
[1641794193622,42.54830318,142.82,142.78,0.79378993]
[1641794193623,3.96914115,142.81,142.78,0.79378993]
[1641794193823,3.96914115,142.81,142.78,3.20589314]
[1641794194523,3.96914115,142.81,142.79,0.79378993]
[1641794194723,3.96914115,142.81,142.79,3.20589314]
[1641794195424,3.96914115,142.81,142.79,0.79378993]
[1641794195623,3.96914115,142.81,142.8,0.79378993]
[1641794195924,3.96914115,142.81,142.77,0.79378993]
[1641794196423,3.96914115,142.81,142.77,4.79378993]
[1641794196825,3.96914115,142.84,142.78,3.20259009]
[1641794197028,3.96914115,142.84,142.8,27.66479]
[1641794197424,2.53892156,142.83,142.8,27.66479]
[1641794197625,2.53892156,142.83,142.81,0.79378993]
[1641794198226,3.96914115,142.82,142.81,0.79378993]
[1641794199026,3.96914115,142.84,142.81,0.79378993]
[1641794202731,7.96914115,142.84,142.81,0.79378993]
[1641794202931,7.96914115,142.84,142.78,32.06]
[1641794203132,1.75,142.83,142.78,32.06]
[1641794203332,3.96914115,142.83,142.79,0.79350611]
[1641794205133,3.96914115,142.83,142.79,28.45829611]
[1641794205533,3.96914115,142.83,142.8,0.79350611]
[1641794209137,3.96914115,142.83,142.79,0.79350611]
[1641794211141,3.96914115,142.83,142.81,27.66479]
[1641794211840,3.96914115,142.83,142.79,4.79350611]
[1641794212040,3.96914115,142.83,142.82,0.79350611]
[1641794212440,3.96914115,142.83,142.78,43.41300561]
[1641794212441,3.96914115,142.86,142.8,3.19787012]
[1641794213140,3.96914115,142.87,142.81,0.79350611]
[1641794213341,3.96914115,142.85,142.82,27.66479]
[1641794213841,11.60514115,142.88,142.83,0.79350611]
[1641794214241,3.96914115,142.87,142.83,0.79350611]
[1641794214740,3.96914115,142.88,142.83,0.79350611]
[1641794216641,3.96914115,142.88,142.84,4.0]
[1641794216843,3.96914115,142.88,142.83,4.79350611]
[1641794217042,3.96914115,142.88,142.83,6.54350611]
[1641794217243,3.96914115,142.89,142.85,4.0]
[1641794217443,3.96914115,142.89,142.88,27.66479]
[1641794217844,3.96914115,142.91,142.88,27.66479]
[1641794219548,3.96914115,142.92,142.89,0.79304774]
[1641794220348,54.76969091,142.95,142.88,27.66479]
[1641794220949,3.96914115,142.94,142.89,0.79305548]
[1641794221152,3.96914115,142.94,142.89,6.88905548]
[1641794221456,3.96914115,142.94,142.93,27.66479]
[1641794221849,3.96914115,142.95,142.92,8.812]
[1641794222252,3.96914115,142.96,142.92,8.812]
[1641794222953,3.96914115,142.96,142.9,4.0]
[1641794223153,3.96914115,142.97,142.91,4.0]
[1641794223353,3.96914115,142.97,142.93,27.66479]
[1641794223955,21.18251148,142.98,142.91,33.6398]
[1641794224154,1.748,142.97,142.91,33.6398]
[1641794224556,2.52550868,142.97,142.91,33.6398]
[1641794224754,3.96914115,142.96,142.91,33.6398]
[1641794225754,3.96914115,142.96,142.93,27.66479]
[1641794226155,25.18290787,142.98,142.93,35.66879]
[1641794226458,1.748,142.97,142.93,35.66879]
[1641794226655,22.93090787,142.97,142.93,35.66879]
[1641794227055,3.96914115,142.96,142.93,35.66879]
[1641794228657,3.96914115,142.96,142.93,8.004]
[1641794229059,21.1830083,142.97,142.93,8.004]
[1641794229659,21.1830083,142.97,142.91,33.6398]
[1641794229859,21.1830083,142.97,142.92,27.66479]
[1641794230362,21.1830083,142.98,142.92,27.66479]
[1641794231362,21.1830083,142.99,142.92,27.66479]
[1641794232162,21.1830083,142.99,142.92,34.24379]
[1641794233862,21.1830083,142.99,142.95,27.66479]
[1641794237563,21.1830083,142.99,142.92,6.579]
[1641794237763,21.1830083,142.99,142.95,7.47]
[1641794238265,21.1830083,142.99,142.95,35.13479]
[1641794238463,21.1830083,142.99,142.95,39.13479]
[1641794238464,3.96914115,142.99,142.95,39.13479]
[1641794239064,3.96914115,143.01,142.96,0.79264287]
[1641794239465,3.96914115,143.02,142.96,0.79264287]
[1641794240067,21.17833522,143.03,142.99,27.66479]
[1641794240265,21.17833522,143.03,142.99,35.38779]
[1641794241265,21.17833522,143.03,142.99,7.723]
[1641794241463,21.17833522,143.03,142.95,59.96539]
[1641794241666,22.92633522,143.03,142.95,59.96539]
[1641794242067,22.92633522,143.03,142.96,0.79262883]
[1641794242265,22.92633522,143.03,142.98,27.66479]
[1641794242466,21.17833522,143.02,142.98,27.66479]
[1641794243265,3.96914115,143.02,142.99,0.79252332]
[1641794243465,4.0,143.04,142.99,0.79252332]
[1641794243665,4.0,143.05,142.99,0.79252332]
[1641794244667,3.9625104,143.04,142.99,0.79252332]
[1641794244867,11.8805104,143.04,142.99,0.79252332]
[1641794245466,3.9625104,143.03,142.99,0.79252332]
[1641794246366,21.17188797,143.04,142.98,27.66479]
[1641794246567,27.30588797,143.04,142.98,27.66479]
[1641794247466,3.9625104,143.03,142.98,27.66479]
[1641794247868,21.17212228,143.03,142.95,27.66479]
[1641794248070,7.34167572,143.02,142.95,27.66479]
[1641794248570,3.9625104,143.01,142.96,0.79268207]
[1641794248770,10.5115104,143.01,142.96,0.79268207]
[1641794249674,3.9625104,143.0,142.96,0.79268207]
[1641794250276,3.9625104,143.0,142.99,27.66479]
[1641794250674,3.9625104,143.01,142.99,27.66479]
[1641794250875,3.9625104,143.01,142.96,0.79268207]
[1641794251075,3.9625104,143.01,142.95,27.66479]
[1641794251575,3.9625104,143.01,142.96,1.43400327]
[1641794253978,16.80664842,143.03,142.96,1.43400327]
[1641794254379,16.80664842,143.03,142.99,27.66479]
[1641794254779,2.52911377,143.02,142.99,27.66479]
[1641794255380,3.9625104,143.01,142.99,27.66479]
[1641794256382,3.9625104,143.01,142.99,55.32958]
[1641794256782,16.80630098,143.03,142.99,55.32958]
[1641794257683,2.52997678,143.02,142.93,35.6478]
[1641794257885,6.52997678,143.02,142.93,35.6478]
[1641794258083,4.0,143.01,142.93,35.6478]
[1641794258283,18.55548837,143.01,142.94,1.43442272]
[1641794258483,46.22027837,143.01,142.94,29.09921272]
[1641794258683,3.9625104,143.0,142.94,29.09921272]
[1641794259082,3.9625104,143.0,142.95,1.43442272]
[1641794261786,3.9625104,143.01,142.95,1.43442272]
[1641794262489,3.9625104,143.01,142.97,27.66479]
[1641794262689,3.9625104,143.02,142.97,27.66479]
[1641794262890,2.53388538,143.0,142.97,27.66479]
[1641794263691,3.9625104,142.99,142.97,27.66479]
[1641794264692,3.9625104,143.0,142.97,27.66479]
[1641794265092,3.9625104,143.01,142.97,27.66479]
[1641794265992,2.53552871,143.0,142.97,27.66479]
[1641794266592,3.9625104,142.99,142.97,27.66479]
[1641794267995,3.9625104,143.01,142.98,1.43381464]
[1641794268896,3.9625104,143.02,142.98,1.43381464]
[1641794269397,2.53834076,143.0,142.98,1.43381464]
[1641794269899,3.9625104,142.99,142.98,1.43381464]
[1641794270798,3.9625104,143.0,142.98,1.43381464]
[1641794271199,3.9625104,143.0,142.98,3.84137918]
[1641794271898,3.9625104,143.02,142.99,1.43381464]
[1641794272399,3.9625104,143.03,142.98,1.43381464]
[1641794273600,2.53740003,143.02,142.98,1.43381464]
[1641794274100,3.9625104,143.01,142.98,1.43381464]
[1641794274699,3.9625104,143.01,143.0,27.66479]
[1641794275501,3.9625104,143.03,143.0,27.66479]
[1641794275701,2.53753231,143.01,143.0,27.66479]
[1641794276602,3.9625104,143.01,143.0,27.66479]
[1641794277303,6.50004271,143.01,143.0,27.66479]
[1641794281308,6.50004271,143.01,142.97,27.66479]
[1641794282005,3.9625104,143.0,142.98,1.43330746]
[1641794282207,3.9625104,143.0,142.98,3.8403352]
[1641794283007,3.9625104,143.03,142.99,3.8403352]
[1641794283407,3.9625104,143.03,142.99,2.40702774]
[1641794283809,2.53669621,143.02,142.97,27.66479]
[1641794284311,3.9625104,143.01,142.98,1.4333341]
[1641794284511,3.9625104,143.01,142.98,3.83966636]
[1641794284711,3.9625104,143.01,142.99,1.4333341]
[1641794286215,3.9625104,143.03,142.98,1.4333341]
[1641794286916,3.9625104,143.03,142.99,2.40573586]
[1641794287615,3.9625104,143.04,143.0,1.4333341]
[1641794288420,2.53581429,143.03,143.0,1.4333341]
[1641794288617,13.66081429,143.03,143.0,1.4333341]
[1641794288817,5.59395074,143.02,142.97,27.66479]
[1641794289017,1.748,143.01,142.95,42.54830318]
[1641794289218,1.748,143.01,142.95,27.66479]
[1641794289618,5.748,143.01,142.95,27.66479]
[1641794289818,1.748,143.01,142.95,27.66479]
[1641794290018,3.96342896,143.0,142.96,1.14736283]
[1641794290218,6.49924325,143.0,142.96,3.55378154]
[1641794290922,3.96342896,142.99,142.97,1.14736283]
[1641794291120,3.96342896,142.99,142.97,7.54736283]
[1641794291620,3.96342896,142.99,142.97,6.4]
[1641794291820,3.96342896,143.01,142.97,6.4]
[1641794293121,2.53762829,143.0,142.97,6.4]
[1641794293625,3.96342896,142.99,142.98,1.14711366]
[1641794293823,3.96342896,142.99,142.96,27.66479]
[1641794294222,3.96342896,142.99,142.97,1.14732132]
[1641794295023,3.96342896,143.01,142.97,1.14732132]
[1641794296023,2.53765529,143.0,142.97,1.14732132]
[1641794296624,3.96342896,142.99,142.97,1.14732132]
[1641794297724,3.96342896,143.01,142.97,1.14732132]
[1641794298625,2.53760329,143.0,142.97,1.14732132]
[1641794299027,3.96342896,142.99,142.97,1.14732132]
[1641794299826,3.96342896,143.01,142.97,1.14732132]
[1641794300227,3.96342896,143.01,142.98,2.40706611]
[1641794301730,3.96342896,143.01,142.97,2.40706611]
[1641794301931,11.32042896,143.01,142.97,2.40706611]
[1641794302630,3.96342896,143.0,142.98,1.13279994]
[1641794303832,3.96342896,143.01,142.97,1.13279994]
[1641794306434,3.96342896,143.01,142.98,2.40730792]
[1641794306835,7.96342896,143.01,142.98,2.40730792]
[1641794307236,9.55780184,143.01,142.98,2.40730792]
[1641794307437,1.748,143.0,142.98,2.40730792]
[1641794307636,5.71142896,143.0,142.98,2.40730792]
[1641794307938,3.96342896,142.99,142.95,2.40730792]
[1641794308435,3.96342896,142.99,142.96,1.13324989]
[1641794310238,3.96342896,142.99,142.95,1.13324989]
[1641794310837,11.48642896,142.99,142.95,1.13324989]
[1641794311237,3.96342896,142.98,142.95,1.13324989]
[1641794312239,3.96342896,142.99,142.95,1.13324989]
[1641794312437,3.96342896,142.97,142.95,1.13324989]
[1641794312840,3.96342896,142.99,142.95,1.13324989]
[1641794313840,2.53829661,142.98,142.95,1.13324989]
[1641794314241,3.96342896,142.97,142.95,1.13324989]
[1641794315242,3.96342896,142.99,142.95,1.13324989]
[1641794315544,3.96342896,142.99,142.96,2.40764394]
[1641794317145,3.96342896,142.99,142.95,2.40764394]
[1641794318147,3.96342896,142.99,142.96,1.1334219]
[1641794318547,2.53970184,142.98,142.96,1.1334219]
[1641794318948,3.96342896,142.97,142.95,2.40764394]
[1641794319347,3.96342896,142.97,142.96,1.13346302]
[1641794319848,3.96342896,142.97,142.95,1.13346302]
[1641794320152,3.96342896,142.99,142.95,1.13346302]
[1641794321253,2.53872633,142.98,142.95,1.13346302]
[1641794321851,3.96342896,142.97,142.95,1.13346302]
[1641794322453,3.96342896,142.97,142.93,28.79825302]
[1641794322856,3.96342896,142.97,142.94,1.13346302]
[1641794323253,3.96342896,142.98,142.94,1.13346302]
[1641794323753,3.96342896,142.98,142.95,2.40762484]
[1641794324453,3.96342896,142.98,142.95,30.07241484]
[1641794325154,3.96342896,142.98,142.95,27.66479]
[1641794325955,3.96342896,142.98,142.96,1.13340221]
[1641794328155,3.96342896,142.98,142.93,1.13340221]
[1641794328756,3.96342896,142.98,142.93,28.79819221]
[1641794328955,3.96342896,142.98,142.94,2.40686468]
[1641794329557,3.96342896,142.98,142.95,1.13340221]
[1641794331165,3.96342896,142.98,142.94,1.13340221]
[1641794332763,3.96342896,142.98,142.95,2.40706294]
[1641794333162,3.96342896,142.98,142.96,1.13340221]
[1641794334864,5.71142896,142.98,142.96,28.79819221]
[1641794335363,3.96342896,142.97,142.96,27.66479]
[1641794335764,3.96342896,142.97,142.96,28.7982423]
[1641794336764,3.96342896,142.97,142.96,31.20656437]
[1641794337166,5.59415643,143.01,142.96,31.20656437]
[1641794337167,3.96342896,143.0,142.96,31.20656437]
[1641794337765,3.96342896,143.0,142.97,1.1334523]
[1641794338365,3.96342896,143.0,142.98,2.40832207]
[1641794339567,3.96342896,143.01,142.98,2.40832207]
[1641794339967,3.96342896,143.01,142.97,2.40832207]
[1641794340370,3.96342896,143.01,142.98,1.13276554]
[1641794340768,3.96342896,143.01,142.96,2.40832207]
[1641794341068,3.96342896,143.01,142.96,30.07311207]
[1641794341270,3.96342896,143.01,142.97,1.13281556]
[1641794342470,3.96342896,143.01,142.96,1.13281556]
[1641794343169,3.96342896,143.01,142.96,28.79760556]
[1641794343369,2.53776861,143.0,142.97,2.40738039]
[1641794343570,2.53776861,143.0,142.97,9.67638039]